fUST/lending_fUST_20250806
["ID","MTS","AMOUNT","RATE_DAILY","PERIOD"]
[377449829,1754415057991,-460.0,0.00029041,2]
[377449830,1754415058000,-460.0,0.00029041,2]
[377449832,1754415058010,-1381.82,0.00029041,2]
[377449835,1754415058021,-693.76,0.00029041,2]
[377449837,1754415058032,-676.55,0.00029041,2]
[377449839,1754415058041,-1179.1,0.00029041,2]
[377449841,1754415058050,-471.73,0.00029041,2]
[377449842,1754415058059,-460.0,0.00029041,2]
[377449845,1754415058069,-1188.0,0.00029041,2]
[377449847,1754415058080,-2434.74389024,0.00029068,2]
[377449849,1754415058089,-995.9501556,0.00029068,5]
[377449851,1754415058099,-200.0,0.00029073,5]
[377449853,1754415058109,-1000.0,0.000291,2]
[377449855,1754415058119,-1690.94542455,0.00029112,5]
[377449857,1754415058128,-2524.82941417,0.00029123,2]
[377449859,1754415058137,-2618.2481025,0.00029178,2]
[377449861,1754415058147,-172.45,0.000292,2]
[377449863,1754415058156,-2715.12328229,0.00029233,2]
[377449865,1754415058165,-2206.39850416,0.00029257,2]
[377449867,1754415058174,-2815.58284374,0.00029288,2]
[377449869,1754415058184,-571.67,0.00029315,2]
[377449871,1754415058193,-460.0,0.00029315,2]
[377449873,1754415058202,-460.0,0.00029315,2]
[377449875,1754415058211,-379.70396486,0.00029315,2]
[377449877,1754415058221,-986.09,0.00029315,2]
[377449879,1754415058230,-3352.64,0.00029315,2]
[377449881,1754415058239,-460.0,0.00029315,2]
[377449883,1754415058248,-565.26,0.00029315,2]
[377449885,1754415058258,-1270.03,0.00029315,2]
[377449887,1754415058267,-460.0,0.00029315,2]
[377449889,1754415058276,-1043.48,0.00029315,2]
[377449891,1754415058286,-523.71,0.00029315,2]
[377449893,1754415058295,-669.24,0.00029315,2]
[377449895,1754415058304,-151.830915,0.00029315,7]
[377449897,1754415058315,-151.0,0.00029315,7]
[377449900,1754415058328,-184.192681,0.00029315,7]
[377449902,1754415058337,-151.0,0.00029315,7]
[377449904,1754415058347,-151.0,0.00029315,7]
[377449906,1754415058356,-297.89146792,0.00029315,2]
[377449908,1754415058365,-460.0,0.00029315,2]
[377449910,1754415058373,-460.0,0.00029315,2]
[377449912,1754415058382,-661.32,0.00029315,2]
[377449914,1754415058391,-460.0,0.00029315,2]
[377449916,1754415058400,-460.0,0.00029315,2]
[377449918,1754415058409,-846.11,0.00029315,2]
[377449920,1754415058419,-460.0,0.00029315,2]
[377449922,1754415058428,-3818.35,0.00029315,2]
[377449924,1754415058437,-2389.53,0.00029315,2]
[377449926,1754415058446,-535.36,0.00029315,2]
[377449928,1754415058455,-56223.51,0.00029315,2]
[377449930,1754415058463,-460.0,0.00029315,2]
[377449932,1754415058472,-2020.1,0.00029315,2]
[377449934,1754415058482,-1687.27,0.00029315,2]
[377449936,1754415058490,-163.680142,0.00029315,7]
[377449938,1754415058499,-487.65,0.00029315,2]
[377449940,1754415058508,-448.1363172,0.00029315,2]
[377449942,1754415058517,-163.680142,0.00029315,7]
[377449944,1754415058525,-460.0,0.00029315,2]
[377449946,1754415058534,-460.0,0.00029315,2]
[377449948,1754415058543,-460.0,0.00029315,2]
[377449950,1754415058552,-460.0,0.00029315,2]
[377449952,1754415058561,-646.27,0.00029315,2]
[377449954,1754415058570,-233.56109927,0.00029315,2]
[377449956,1754415058581,-928.38,0.00029315,2]
[377449958,1754415058591,-1122.11,0.00029315,2]
[377449960,1754415058600,-1784.15,0.00029315,2]
[377449962,1754415058610,-1060.85,0.00029315,2]
[377449964,1754415058619,-460.0,0.00029315,2]
[377449966,1754415058628,-701.38,0.00029315,2]
[377449968,1754415058637,-525.29,0.00029315,2]
[377449970,1754415058646,-274.87708,0.00029315,7]
[377449972,1754415058656,-460.0,0.00029315,2]
[377449974,1754415058665,-2833.3,0.00029315,2]
[377449976,1754415058674,-253.273501,0.00029315,7]
[377449978,1754415058683,-460.0,0.00029315,2]
[377449980,1754415058692,-460.0,0.00029315,2]
[377449983,1754415058705,-460.0,0.00029315,2]
[377449985,1754415058714,-263.65,0.00029315,2]
[377449987,1754415058723,-151.0,0.00029315,7]
[377449989,1754415058733,-151.0,0.00029315,7]
[377449991,1754415058742,-1926.76,0.00029315,2]
[377449993,1754415058751,-460.0,0.00029315,2]
[377449995,1754415058760,-151.0,0.00029315,7]
[377449997,1754415058770,-460.0,0.00029315,2]
[377449999,1754415058779,-1135.24,0.00029315,2]
[377450001,1754415058789,-1547.47,0.00029315,2]
[377450003,1754415058798,-460.0,0.00029315,2]
[377450005,1754415058808,-151.0,0.00029315,7]
[377450007,1754415058817,-675.85,0.00029315,2]
[377450009,1754415058827,-151.0,0.00029315,7]
[377450011,1754415058836,-460.0,0.00029315,2]
[377450013,1754415058845,-862.88,0.00029315,2]
[377450015,1754415058855,-462.3,0.00029315,2]
[377450017,1754415058865,-828.49,0.00029315,2]
[377450019,1754415058874,-460.0,0.00029315,2]
[377450021,1754415058884,-151.0,0.00029315,7]
[377450023,1754415058893,-151.0,0.00029315,7]
[377450025,1754415058902,-151.0,0.00029315,7]
[377450027,1754415058911,-379.619623,0.00029315,7]
[377450029,1754415058921,-460.0,0.00029315,2]
[377450031,1754415058930,-379.619623,0.00029315,7]
[377450033,1754415058939,-460.0,0.00029315,2]
[377450035,1754415058948,-460.0,0.00029315,2]
[377450037,1754415058958,-460.0,0.00029315,2]
[377450039,1754415058967,-827.63,0.00029315,2]
[377450041,1754415058976,-151.0,0.00029315,7]
[377450043,1754415058985,-469.85233829,0.00029315,2]
[377450045,1754415058995,-1381.82,0.00029315,2]
[377450047,1754415059005,-151.0,0.00029315,7]
[377450049,1754415059014,-693.76,0.00029315,2]
[377450052,1754415059027,-151.0,0.00029315,7]
[377450053,1754415059039,-676.55,0.00029315,2]
[377450055,1754415059048,-1179.1,0.00029315,2]
[377450058,1754415059058,-471.73,0.00029315,2]
[377450060,1754415059069,-460.0,0.00029315,2]
[377450062,1754415059078,-1188.0,0.00029315,2]
[377450063,1754415059087,-155.87983,0.00029315,7]
[377450066,1754415059096,-460.0,0.00029315,2]
[377450067,1754415059108,-2919.75940895,0.00029343,2]
[377450069,1754415059117,-538.56345926,0.00029365,7]
[377450072,1754415059127,-3027.79050709,0.00029398,2]
[377450074,1754415059137,-216.4206905,0.000294,7]
[377450075,1754415059146,-160.0,0.000294,7]
[377450077,1754415059156,-502.74861018,0.0002944,5]
[377450080,1754415059166,-500.0,0.0002944,5]
[377450082,1754415059176,-679.3,0.00029448,7]
[377450084,1754415059186,-991.87489451,0.00029453,2]
[377450086,1754415059195,-151.0,0.00029489,7]
[377450088,1754415059205,-151.0,0.00029489,7]
[377450090,1754415059214,-151.0,0.00029489,7]
[377450091,1754415059224,-151.000001,0.00029489,7]
[377450094,1754415059233,-151.0,0.00029489,7]
[377450096,1754415059243,-151.0,0.00029489,7]
[377450098,1754415059253,-151.0,0.00029489,7]
[377450100,1754415059262,-151.0,0.00029489,7]
[377450102,1754415059271,-460.0,0.00029492,2]
[377450104,1754415059280,-215.21874788,0.000295,7]
[377450106,1754415059289,-160.0,0.000295,7]
[377450107,1754415059299,-160.0,0.000295,7]
[377450110,1754415059308,-2500.0,0.00029564,5]
[377450111,1754415059317,-2148.0,0.00029565,2]
[377450113,1754415059328,-636.0,0.00029565,2]
[377450115,1754415059337,-971.0,0.00029565,2]
[377450117,1754415059347,-551.788,0.00029565,2]
[377450120,1754415059357,-410.804,0.00029565,2]
[377450121,1754415059366,-571.67,0.00029589,2]
[377450123,1754415059376,-460.0,0.00029589,2]
[377450126,1754415059385,-460.0,0.00029589,2]
[377450127,1754415059395,-986.09,0.00029589,2]
[377450130,1754415059404,-3352.64,0.00029589,2]
[377450132,1754415059414,-460.0,0.00029589,2]
[377450134,1754415059423,-565.26,0.00029589,2]
[377450136,1754415059434,-1270.03,0.00029589,2]
[377450138,1754415059443,-460.0,0.00029589,2]
[377450140,1754415059453,-1043.48,0.00029589,2]
[377450142,1754415059462,-151.0,0.00029589,7]
[377450144,1754415059471,-151.0,0.00029589,7]
[377450146,1754415059480,-151.0,0.00029589,7]
[377450148,1754415059490,-219.174412,0.00029589,7]
[377450150,1754415059499,-151.0,0.00029589,7]
[377450152,1754415059508,-151.0,0.00029589,7]
[377450154,1754415059517,-669.24,0.00029589,2]
[377450155,1754415059526,-151.0,0.00029589,7]
[377450156,1754415059536,-460.0,0.00029589,2]
[377450157,1754415059546,-460.0,0.00029589,2]
[377450158,1754415059555,-661.32,0.00029589,2]
[377450159,1754415059565,-460.0,0.00029589,2]
[377450160,1754415059574,-460.0,0.00029589,2]
[377450161,1754415059586,-846.11,0.00029589,2]
[377450162,1754415059596,-460.0,0.00029589,2]
[377450163,1754415059605,-3818.35,0.00029589,2]
[377450164,1754415059614,-2389.53,0.00029589,2]
[377450165,1754415059624,-535.36,0.00029589,2]
[377450166,1754415059633,-151.0,0.00029589,7]
[377450167,1754415059642,-56223.51,0.00029589,2]
[377450169,1754415059651,-460.0,0.00029589,2]
[377450170,1754415059660,-2020.1,0.00029589,2]
[377450172,1754415059669,-1687.27,0.00029589,2]
[377450174,1754415059679,-151.0,0.00029589,7]
[377450176,1754415059688,-487.65,0.00029589,2]
[377450178,1754415059697,-460.0,0.00029589,2]
[377450180,1754415059706,-151.0,0.00029589,7]
[377450182,1754415059715,-460.0,0.00029589,2]
[377450184,1754415059725,-460.0,0.00029589,2]
[377450186,1754415059734,-460.0,0.00029589,2]
[377450188,1754415059743,-646.27,0.00029589,2]
[377450199,1754415059752,-928.38,0.00029589,2]
[377450203,1754415059865,-1122.11,0.00029589,2]
[377450205,1754415059876,-1784.15,0.00029589,2]
[377450207,1754415059887,-1060.85,0.00029589,2]
[377450209,1754415059897,-701.38,0.00029589,2]
[377450211,1754415059907,-525.29,0.00029589,2]
[377450213,1754415059916,-460.0,0.00029589,2]
[377450215,1754415059925,-2833.3,0.00029589,2]
[377450217,1754415059935,-460.0,0.00029589,2]
[377450219,1754415059944,-460.0,0.00029589,2]
[377450221,1754415059955,-460.0,0.00029589,2]
[377450223,1754415059964,-1926.76,0.00029589,2]
[377450225,1754415059973,-460.0,0.00029589,2]
[377450227,1754415059982,-460.0,0.00029589,2]
[377450229,1754415059992,-1135.24,0.00029589,2]
[377450231,1754415060003,-1547.47,0.00029589,2]
[377450233,1754415060013,-460.0,0.00029589,2]
[377450235,1754415060026,-675.85,0.00029589,2]
[377450237,1754415060036,-460.0,0.00029589,2]
[377450239,1754415060047,-862.88,0.00029589,2]
[377450241,1754415060057,-462.3,0.00029589,2]
[377450243,1754415060069,-828.49,0.00029589,2]
[377450245,1754415060082,-460.0,0.00029589,2]
[377450247,1754415060092,-460.0,0.00029589,2]
[377450249,1754415060103,-460.0,0.00029589,2]
[377450251,1754415060115,-460.0,0.00029589,2]
[377450253,1754415060126,-460.0,0.00029589,2]
[377450255,1754415060136,-827.63,0.00029589,2]
[377450257,1754415060147,-1381.82,0.00029589,2]
[377450259,1754415060157,-693.76,0.00029589,2]
[377450261,1754415060167,-676.55,0.00029589,2]
[377450264,1754415060177,-1179.1,0.00029589,2]
[377450266,1754415060187,-471.73,0.00029589,2]
[377450268,1754415060197,-460.0,0.00029589,2]
[377450270,1754415060207,-1188.0,0.00029589,2]
[377450272,1754415060216,-373.55199257,0.00029589,2]
[377450274,1754415060227,-306.0,0.00029589,30]
[377450276,1754415060237,-1000.0,0.000296,2]
[377450278,1754415060246,-160.0,0.000296,7]
[377450280,1754415060256,-231.72586818,0.000296,7]
[377450282,1754415060266,-160.0,0.000296,7]
[377450284,1754415060276,-374.84135607,0.00029612,2]
[377450286,1754415060285,-561.23166299,0.00029612,2]
[377450288,1754415060295,-500.0,0.0002964,5]
[377450290,1754415060304,-500.0,0.0002966,5]
[377450292,1754415060314,-600.0,0.00029666,2]
[377450294,1754415060323,-386.23,0.00029666,2]
[377450296,1754415060338,-150.78100622,0.00029781,2]
[377450298,1754415060348,-150.78100622,0.00029781,2]
[377450300,1754415060357,-571.67,0.00029863,2]
[377450302,1754415060367,-460.0,0.00029863,2]
[377450304,1754415060376,-460.0,0.00029863,2]
[377450306,1754415060385,-986.09,0.00029863,2]
[377450308,1754415060395,-3352.64,0.00029863,2]
[377450310,1754415060404,-460.0,0.00029863,2]
[377450312,1754415060414,-565.26,0.00029863,2]
[377450314,1754415060423,-1270.03,0.00029863,2]
[377450316,1754415060433,-460.0,0.00029863,2]
[377450318,1754415060442,-1043.48,0.00029863,2]
[377450320,1754415060452,-669.24,0.00029863,2]
[377450322,1754415060461,-491.8,0.00029863,2]
[377450324,1754415060470,-460.0,0.00029863,2]
[377450326,1754415060480,-661.32,0.00029863,2]
[377450328,1754415060489,-460.0,0.00029863,2]
[377450330,1754415060498,-460.0,0.00029863,2]
[377450332,1754415060508,-846.11,0.00029863,2]
[377450334,1754415060518,-151.0,0.00029863,7]
[377450336,1754415060527,-460.0,0.00029863,2]
[377450338,1754415060538,-151.0,0.00029863,7]
[377450340,1754415060547,-151.0,0.00029863,7]
[377450342,1754415060557,-3818.35,0.00029863,2]
[377450344,1754415060566,-2389.53,0.00029863,2]
[377450346,1754415060576,-535.36,0.00029863,2]
[377450348,1754415060591,-56223.51,0.00029863,2]
[377450350,1754415060601,-460.0,0.00029863,2]
[377450352,1754415060611,-2020.1,0.00029863,2]
[377450354,1754415060621,-1687.27,0.00029863,2]
[377450356,1754415060631,-487.65,0.00029863,2]
[377450358,1754415060640,-460.0,0.00029863,2]
[377450360,1754415060650,-460.0,0.00029863,2]
[377450362,1754415060660,-370.81329754,0.00029863,2]
[377450364,1754415060669,-460.0,0.00029863,2]
[377450366,1754415060678,-646.27,0.00029863,2]
[377450368,1754415060687,-928.38,0.00029863,2]
[377450370,1754415060697,-1122.11,0.00029863,2]
[377450372,1754415060706,-1784.15,0.00029863,2]
[377450374,1754415060716,-1060.85,0.00029863,2]
[377450376,1754415060726,-701.38,0.00029863,2]
[377450378,1754415060736,-525.29,0.00029863,2]
[377450380,1754415060745,-460.0,0.00029863,2]
[377450382,1754415060755,-2833.3,0.00029863,2]
[377450384,1754415060765,-460.0,0.00029863,2]
[377450386,1754415060775,-419.24,0.00029863,2]
[377450388,1754415060784,-460.0,0.00029863,2]
[377450390,1754415060795,-1926.76,0.00029863,2]
[377450392,1754415060804,-460.0,0.00029863,2]
[377450394,1754415060813,-460.0,0.00029863,2]
[377450396,1754415060822,-1135.24,0.00029863,2]
[377450398,1754415060835,-460.0,0.00029863,2]
[377450400,1754415060845,-1547.47,0.00029863,2]
[377450402,1754415060854,-675.85,0.00029863,2]
[377450404,1754415060864,-460.0,0.00029863,2]
[377450406,1754415060873,-862.88,0.00029863,2]
[377450408,1754415060882,-462.3,0.00029863,2]
[377450410,1754415060893,-828.49,0.00029863,2]
[377450412,1754415060903,-460.0,0.00029863,2]
[377450414,1754415060912,-460.0,0.00029863,2]
[377450416,1754415060922,-460.0,0.00029863,2]
[377450418,1754415060931,-460.0,0.00029863,2]
[377450420,1754415060940,-460.0,0.00029863,2]
[377450422,1754415060950,-827.63,0.00029863,2]
[377450424,1754415060959,-1381.82,0.00029863,2]
[377450426,1754415060969,-693.76,0.00029863,2]
[377450428,1754415060978,-676.55,0.00029863,2]
[377450430,1754415060987,-1179.1,0.00029863,2]
[377450432,1754415060997,-471.73,0.00029863,2]
[377450434,1754415061006,-460.0,0.00029863,2]
[377450437,1754415061016,-1188.0,0.00029863,2]
[377450439,1754415061028,-100004.26158883,0.0003,30]
[377450441,1754415061037,-160.0,0.0003,30]
[377450443,1754415061047,-231.72586818,0.0003,30]
[377450445,1754415061057,-151.0,0.0003,7]
[377450447,1754415061067,-151.0,0.0003,7]
[377450449,1754415061076,-151.0,0.0003,7]
[377450451,1754415061087,-1500.0,0.0003,3]
[377450453,1754415061097,-151.0,0.0003,7]
[377450455,1754415061108,-160.0,0.0003,30]
[377450457,1754415061118,-198.0,0.0003,7]
[377450459,1754415061127,-151.0,0.0003,7]
[377450461,1754415061136,-151.0,0.0003,7]
[377450463,1754415061146,-4000.0,0.0003,4]
[377450465,1754415061156,-151.0,0.0003,7]
[377450467,1754415061166,-151.0,0.0003,7]
[377450469,1754415061175,-216.4206905,0.0003,30]
[377450471,1754415061185,-323.0,0.0003,14]
[377450473,1754415061195,-250.530879,0.00030005,7]
[377450475,1754415061204,-1800.0,0.00030011,7]
[377450477,1754415061214,-151.0,0.00030012,7]
[377450479,1754415061224,-151.0,0.00030012,7]
[377450481,1754415061234,-155.690815,0.00030012,7]
[377450483,1754415061243,-155.690815,0.00030012,7]
[377450485,1754415061253,-560.0,0.0003004,2]
[377450487,1754415061263,-150.78100622,0.00030055,2]
[377450489,1754415061273,-150.78100622,0.00030055,2]
[377450491,1754415061282,-800.0,0.00030096,2]
[377450493,1754415061291,-1000.0,0.000301,2]
[377450495,1754415061301,-452.51557378,0.00030112,5]
[377450497,1754415061310,-151.0,0.00030119,7]
[377450500,1754415061319,-151.0,0.00030119,7]
[377450501,1754415061331,-151.0,0.00030119,7]
[377450504,1754415061342,-153.628359,0.00030119,7]
[377450506,1754415061352,-185.394036,0.00030119,7]
[377450508,1754415061363,-185.394036,0.00030119,7]
[377450510,1754415061372,-10177.92685651,0.0003013,2]
[377450512,1754415061382,-65941.74377936,0.0003013,5]
[377450514,1754415061392,-8167.7409586,0.00030136,2]
[377450516,1754415061401,-571.67,0.00030136,2]
[377450518,1754415061410,-460.0,0.00030136,2]
[377450520,1754415061421,-460.0,0.00030136,2]
[377450522,1754415061431,-986.09,0.00030136,2]
[377450524,1754415061440,-3352.64,0.00030136,2]
[377450526,1754415061449,-460.0,0.00030136,2]
[377450528,1754415061459,-565.26,0.00030136,2]
[377450530,1754415061468,-1270.03,0.00030136,2]
[377450532,1754415061478,-460.0,0.00030136,2]
[377450534,1754415061487,-1043.48,0.00030136,2]
[377450536,1754415061497,-5941.32599956,0.00030136,2]
[377450538,1754415061506,-387.2021259,0.00030136,2]
[377450540,1754415061515,-1548.80850358,0.00030136,2]
[377450542,1754415061525,-3481.33431393,0.00030136,2]
[377450544,1754415061534,-5949.73915577,0.00030136,2]
[377450546,1754415061544,-530.5862368,0.00030136,2]
[377450548,1754415061553,-2120.22260226,0.00030136,2]
[377450550,1754415061563,-669.24,0.00030136,2]
[377450552,1754415061572,-151.0,0.00030136,7]
[377450554,1754415061583,-151.0,0.00030136,7]
[377450556,1754415061592,-151.0,0.00030136,7]
[377450558,1754415061602,-460.0,0.00030136,2]
[377450560,1754415061611,-661.32,0.00030136,2]
[377450562,1754415061621,-460.0,0.00030136,2]
[377450565,1754415061630,-5034.93002388,0.00030136,2]
[377450567,1754415061640,-666.82336758,0.00030136,2]
[377450569,1754415061649,-2667.29347031,0.00030136,2]
[377450571,1754415061658,-5995.4088979,0.00030136,2]
[377450573,1754415061668,-1794.99366894,0.00030136,2]
[377450575,1754415061677,-460.0,0.00030136,2]
[377450577,1754415061686,-846.11,0.00030136,2]
[377450584,1754415061781,-472.2024786,0.00030136,2]
[377450585,1754415061791,-3818.35,0.00030136,2]
[377450586,1754415061801,-2389.53,0.00030136,2]
[377450587,1754415061812,-535.36,0.00030136,2]
[377450588,1754415061822,-56223.51,0.00030136,2]
[377450589,1754415061834,-460.0,0.00030136,2]
[377450590,1754415061843,-2020.1,0.00030136,2]
[377450591,1754415061853,-1687.27,0.00030136,2]
[377450592,1754415061862,-163.680142,0.00030136,7]
[377450593,1754415061878,-163.680142,0.00030136,7]
[377450594,1754415061887,-487.65,0.00030136,2]
[377450595,1754415061896,-460.0,0.00030136,2]
[377450596,1754415061905,-460.0,0.00030136,2]
[377450597,1754415061915,-151.0,0.00030136,7]
[377450598,1754415061924,-460.0,0.00030136,2]
[377450599,1754415061934,-646.27,0.00030136,2]
[377450600,1754415061943,-151.0,0.00030136,7]
[377450601,1754415061953,-151.0,0.00030136,7]
[377450602,1754415061962,-928.38,0.00030136,2]
[377450603,1754415061971,-1122.11,0.00030136,2]
[377450604,1754415061981,-1784.15,0.00030136,2]
[377450605,1754415061990,-1060.85,0.00030136,2]
[377450606,1754415062000,-701.38,0.00030136,2]
[377450607,1754415062009,-525.29,0.00030136,2]
[377450608,1754415062021,-151.0,0.00030136,7]
[377450609,1754415062034,-460.0,0.00030136,2]
[377450610,1754415062044,-2833.3,0.00030136,2]
[377450611,1754415062054,-176.637088,0.00030136,7]
[377450612,1754415062063,-460.0,0.00030136,2]
[377450613,1754415062073,-460.0,0.00030136,2]
[377450614,1754415062084,-151.0,0.00030136,7]
[377450616,1754415062094,-390.22145303,0.00030136,2]
[377450618,1754415062108,-1560.88581213,0.00030136,2]
[377450620,1754415062119,-301.868644,0.00030136,7]
[377450622,1754415062129,-3508.48108422,0.00030136,2]
[377450624,1754415062139,-1926.76,0.00030136,2]
[377450626,1754415062148,-460.0,0.00030136,2]
[377450628,1754415062157,-460.0,0.00030136,2]
[377450630,1754415062166,-1135.24,0.00030136,2]
[377450632,1754415062176,-460.0,0.00030136,2]
[377450634,1754415062186,-1547.47,0.00030136,2]
[377450636,1754415062195,-675.85,0.00030136,2]
[377450638,1754415062205,-460.0,0.00030136,2]
[377450640,1754415062214,-862.88,0.00030136,2]
[377450642,1754415062224,-462.3,0.00030136,2]
[377450644,1754415062234,-828.49,0.00030136,2]
[377450646,1754415062244,-460.0,0.00030136,2]
[377450648,1754415062253,-379.619623,0.00030136,7]
[377450651,1754415062263,-460.0,0.00030136,2]
[377450653,1754415062274,-379.619623,0.00030136,7]
[377450654,1754415062284,-460.0,0.00030136,2]
[377450657,1754415062294,-473.74217801,0.00030136,2]
[377450659,1754415062303,-460.0,0.00030136,2]
[377450661,1754415062312,-827.63,0.00030136,2]
[377450663,1754415062322,-1381.82,0.00030136,2]
[377450664,1754415062331,-693.76,0.00030136,2]
[377450666,1754415062340,-676.55,0.00030136,2]
[377450668,1754415062350,-1179.1,0.00030136,2]
[377450670,1754415062360,-471.73,0.00030136,2]
[377450672,1754415062369,-460.0,0.00030136,2]
[377450674,1754415062379,-1188.0,0.00030136,2]
[377450676,1754415062388,-54614.5168398,0.00030137,2]
[377450678,1754415062398,-151.0,0.00030137,7]
[377450680,1754415062407,-151.0,0.00030137,7]
[377450682,1754415062417,-834.63511551,0.00030144,2]
[377450684,1754415062427,-800.0,0.00030155,2]
[377450686,1754415062436,-151.0,0.00030178,7]
[377450688,1754415062445,-151.0,0.00030178,7]
[377450690,1754415062454,-151.000002,0.00030178,7]
[377450692,1754415062463,-175.91117393,0.00030192,2]
[377450694,1754415062473,-175.91117392,0.00030192,2]
[377450696,1754415062482,-800.0,0.00030194,2]
[377450698,1754415062491,-800.0,0.00030198,2]
[377450700,1754415062501,-90000.0,0.000302,5]
[377450702,1754415062510,-800.0,0.000302,2]
[377450704,1754415062520,-151.0,0.000302,7]
[377450706,1754415062529,-151.0,0.000302,7]
[377450708,1754415062539,-800.0,0.00030201,2]
[377450710,1754415062549,-800.0,0.00030203,2]
[377450712,1754415062559,-800.0,0.00030235,2]
[377450714,1754415062568,-800.0,0.00030239,2]
[377450716,1754415062578,-800.0,0.00030246,2]
[377450718,1754415062588,-800.0,0.00030257,2]
[377450720,1754415062599,-679.3,0.00030258,7]
[377450722,1754415062608,-800.0,0.00030264,2]
[377450724,1754415062617,-800.0,0.00030268,2]
[377450726,1754415062627,-151.0,0.00030298,7]
[377450728,1754415062636,-151.0,0.00030298,7]
[377450730,1754415062645,-151.0,0.00030298,7]
[377450732,1754415062655,-150.78100622,0.00030301,2]
[377450734,1754415062665,-150.78100622,0.00030301,2]
[377450736,1754415062674,-800.0,0.00030303,2]
[377450738,1754415062683,-800.0,0.00030306,2]
[377450740,1754415062692,-800.0,0.00030309,2]
[377450742,1754415062701,-800.0,0.00030328,2]
[377450744,1754415062712,-500.0,0.00030334,5]
[377450746,1754415062722,-800.0,0.00030342,2]
[377450748,1754415062732,-800.0,0.00030355,2]
[377450750,1754415062742,-800.0,0.00030355,2]
[377450752,1754415062751,-325.0,0.00030382,7]
[377450754,1754415062761,-325.0,0.00030382,7]
[377450756,1754415062770,-325.0,0.00030382,7]
[377450758,1754415062780,-325.0,0.00030382,7]
[377450760,1754415062790,-325.0,0.00030382,7]
[377450762,1754415062800,-325.0,0.00030382,7]
[377450764,1754415062810,-325.0,0.00030382,7]
[377450766,1754415062819,-316.85729207,0.00030382,7]
[377450768,1754415062829,-1756.0,0.00030382,7]
[377450770,1754415062840,-325.0,0.00030382,7]
[377450772,1754415062850,-325.0,0.00030382,7]
[377450774,1754415062859,-325.0,0.00030382,7]
[377450776,1754415062868,-325.0,0.00030382,7]
[377450778,1754415062878,-325.0,0.00030382,7]
[377450780,1754415062888,-8603.57995424,0.00030398,7]
[377450782,1754415062898,-151.0,0.00030398,7]
[377450784,1754415062907,-151.0,0.00030398,7]
[377450786,1754415062917,-8228.35775816,0.000304,2]
[377450788,1754415062927,-251551.82018003,0.000304,4]
[377450802,1754415063053,-183034.13073254,0.000304,4]
[377450804,1754415063065,-282432.47,0.000304,4]
[377450806,1754415063075,-268533.08,0.000304,4]
[377450808,1754415063088,-525611.46,0.000304,4]
[377450810,1754415063098,-151.0,0.000304,7]
[377450813,1754415063113,-152.529598,0.000304,7]
[377450815,1754415063123,-151.0,0.000304,7]
[377450817,1754415063132,-151.0,0.000304,7]
[377450819,1754415063142,-151.0,0.000304,7]